bitfinex/quotes_ETHUSD_20250425
["timestamp","ask_amount","ask_price","bid_price","bid_amount"]
[1745572320946,3.0,1772.1,1771.4,6.166]
[1745572320947,5.64493367,1771.5,1771.4,6.166]
[1745572321096,5.64447327,1771.7,1771.4,6.166]
[1745572321715,3.0,1771.8,1771.4,6.166]
[1745572322037,8.64414878,1771.8,1771.4,6.166]
[1745572322236,0.7937,1772.2,1771.4,6.7826]
[1745572322439,5.64334474,1772.0,1771.4,12.42775168]
[1745572322646,0.7937,1772.2,1771.4,12.42775168]
[1745572322647,8.64325086,1772.1,1771.4,12.4276927]
[1745572322939,8.6434399,1772.0,1771.4,6.7826]
[1745572323303,3.0,1772.1,1771.5,5.64481765]
[1745572323528,3.0,1772.1,1771.5,6.88755942]
[1745572323741,8.64305007,1772.1,1771.5,6.88755942]
[1745572324108,8.64305007,1772.1,1771.5,1.24274177]
[1745572324426,5.95713258,1772.0,1771.5,1.24274177]
[1745572324828,0.31370116,1772.0,1771.5,1.24274177]
[1745572325203,11.6001879,1772.1,1771.5,1.24274177]
[1745572325403,3.0,1772.0,1771.4,6.7826]
[1745572325609,5.64353013,1772.0,1771.4,6.166]
[1745572325810,5.64398743,1771.8,1771.2,0.7889]
[1745572326029,5.64398743,1771.8,1771.5,6.116]
[1745572326337,5.64443602,1771.7,1771.5,6.116]
[1745572326543,5.64450689,1771.7,1771.5,6.116]
[1745572326745,5.64461503,1771.6,1771.5,6.116]
[1745572327309,8.64461503,1771.6,1771.5,6.116]
[1745572327504,8.95831619,1771.6,1771.5,6.116]
[1745572327706,5.64531458,1771.4,1771.1,6.116]
[1745572327938,3.31370116,1771.6,1771.0,6.116]
[1745572328100,0.31370116,1771.5,1771.0,6.116]
[1745572328308,0.31370116,1771.5,1771.0,11.76227443]
[1745572328501,0.31370116,1771.5,1771.1,5.64610349]
[1745572328706,0.31370116,1771.5,1771.0,11.76227443]
[1745572329331,0.31370116,1771.6,1771.0,11.76227443]
[1745572329655,0.31370116,1771.6,1771.0,13.58642361]
[1745572329811,0.31370116,1771.6,1771.1,5.64617103]
[1745572330006,0.31370116,1771.6,1771.1,5.6460614]
[1745572330223,0.31370116,1771.6,1771.2,6.46007549]
[1745572330608,0.31370116,1771.6,1771.3,5.64536445]
[1745572330809,0.31370116,1771.7,1771.4,0.56453645]
[1745572331032,0.31370116,1771.7,1771.5,6.116]
[1745572331743,3.0,1771.7,1771.5,6.116]
[1745572331906,5.64461503,1771.6,1771.5,6.116]
[1745572332106,5.64450207,1771.7,1771.5,6.116]
[1745572332305,5.64461503,1771.6,1771.5,6.116]
[1745572332558,5.64451949,1771.7,1771.3,6.116]
[1745572332702,0.31370116,1771.6,1771.3,6.116]
[1745572334149,5.64521084,1771.5,1771.3,6.116]
[1745572334314,0.31370116,1771.5,1771.3,6.116]
[1745572335538,0.31370116,1771.7,1771.3,6.116]
[1745572336417,5.64381572,1771.9,1771.3,7.3736142]
[1745572336627,9.41792245,1772.0,1771.3,7.3736142]
[1745572336808,8.64370597,1771.9,1771.3,13.01904867]
[1745572337014,3.0,1771.9,1771.3,18.66439466]
[1745572337233,3.0,1771.9,1771.3,13.01896019]
[1745572337446,5.64333817,1772.1,1771.4,6.94686222]
[1745572337622,0.31410991,1771.8,1771.4,6.94686222]
[1745572337826,0.31410991,1771.8,1771.4,1.30189602]
[1745572338541,0.31410991,1771.9,1771.5,6.40402413]
[1745572338968,0.31410991,1771.9,1771.5,0.7591]
[1745572339130,3.0,1772.0,1771.5,0.7591]
[1745572339477,0.31436117,1771.9,1771.5,6.40387721]
[1745572339674,0.31436117,1771.9,1771.6,5.64438624]
[1745572339841,0.31436117,1771.9,1771.5,7.73894169]
[1745572340047,0.31436117,1771.9,1771.5,7.73889655]
[1745572340570,0.31436117,1772.1,1771.5,7.73889655]
[1745572340786,0.31436117,1772.1,1771.5,13.38362754]
[1745572341072,0.31436117,1772.0,1771.6,5.64459129]
[1745572341571,0.31436117,1772.0,1771.6,6.98283644]
[1745572341749,0.31436117,1772.1,1771.6,6.98279058]
[1745572342065,0.31436117,1772.1,1771.6,5.6444428]
[1745572342650,0.31436117,1772.1,1771.6,5.64442275]
[1745572342833,0.31436117,1772.2,1771.6,5.64442275]
[1745572343038,5.95709205,1772.2,1771.7,0.7987]
[1745572343239,0.31436117,1772.2,1771.8,6.115]
[1745572343571,0.31436117,1772.2,1771.8,11.75887089]
[1745572343777,0.8148,1772.6,1771.9,5.64344349]
[1745572343778,0.31436117,1772.3,1771.9,5.64344349]
[1745572344088,0.31436117,1772.3,1772.1,5.64283304]
[1745572344573,5.95549274,1772.7,1772.0,6.44852548]
[1745572344783,5.95549274,1772.7,1772.0,7.65772486]
[1745572344936,11.5968929,1772.7,1772.0,7.65772486]
[1745572345136,0.31436117,1772.6,1772.0,7.65772486]
[1745572345337,0.31436117,1772.6,1772.0,2.01459938]
[1745572345548,5.95600285,1772.6,1772.0,2.01459938]
[1745572346158,0.31436117,1772.6,1772.0,7.65790708]
[1745572346365,5.95549274,1772.7,1772.1,0.76579071]
[1745572346765,0.31436117,1772.7,1772.1,0.76579071]
[1745572347084,0.31436117,1772.7,1772.3,5.64216031]
[1745572347260,0.31436117,1772.7,1772.4,6.114]
[1745572347459,6.04515265,1773.1,1772.5,0.7993]
[1745572347663,5.6401767,1773.0,1772.5,1.49063]
[1745572348035,5.64068676,1772.9,1772.5,0.7993]
[1745572348239,0.7966,1772.9,1772.4,6.114]
[1745572348470,5.6412555,1772.7,1772.4,6.114]
[1745572348677,5.6409027,1772.8,1772.4,6.114]
[1745572348886,5.64100202,1772.8,1772.2,0.7685]
[1745572349174,5.64100202,1772.8,1772.4,6.114]
[1745572349944,5.64100202,1772.8,1772.4,5.887]
[1745572350542,5.64174894,1772.5,1772.4,5.887]
[1745572350778,8.64111242,1772.7,1772.4,5.887]
[1745572350779,5.64148485,1772.6,1772.4,5.887]
[1745572351373,3.0,1772.7,1772.2,0.7685]
[1745572351575,5.64158074,1772.6,1772.3,5.887]
[1745572352158,5.64111242,1772.7,1772.3,5.887]
[1745572352358,9.45876725,1772.4,1772.3,5.887]
[1745572352853,9.45876725,1772.4,1771.9,0.7931]
[1745572353058,5.64280485,1772.2,1771.9,5.886]
[1745572353383,5.64257049,1772.3,1771.9,5.886]
[1745572353702,11.28521025,1772.3,1771.9,5.886]
[1745572353982,5.64270627,1772.2,1771.9,5.886]
[1745572354156,3.0,1772.3,1771.9,5.886]
[1745572354353,0.8167,1772.4,1771.9,6.4746]
[1745572354554,3.0,1772.4,1772.0,5.886]
[1745572354746,8.64211178,1772.4,1772.0,5.886]
[1745572355182,0.8054,1772.6,1772.0,5.886]
[1745572355382,5.64224726,1772.4,1772.0,5.886]
[1745572355588,5.64260875,1772.3,1772.1,5.886]
[1745572355755,5.64270398,1772.2,1772.1,5.886]
[1745572356084,5.64260875,1772.3,1772.1,5.886]
[1745572356580,11.28524728,1772.3,1772.1,5.886]
[1745572356788,5.64260875,1772.3,1772.1,5.886]
[1745572357285,11.28524434,1772.3,1771.9,5.886]
[1745572357762,11.28522888,1772.3,1771.9,5.886]
[1745572357962,5.64273028,1772.2,1771.9,5.886]
[1745572358182,5.6431946,1772.1,1771.9,5.886]
[1745572358381,5.64334085,1772.0,1771.9,5.886]
[1745572359289,11.28695084,1772.0,1771.7,5.886]
[1745572359496,11.2869217,1772.0,1771.7,5.886]
[1745572359798,5.64334085,1772.0,1771.7,5.886]
[1745572360289,5.64334085,1772.0,1771.6,5.886]
[1745572360751,5.64315067,1772.1,1771.6,5.886]
[1745572360951,6.46829361,1772.2,1771.6,8.24987]
[1745572361353,12.11123997,1772.2,1771.6,8.24987]
[1745572361584,6.46829361,1772.2,1771.6,8.24987]
[1745572361885,5.64279361,1772.2,1771.6,13.89447527]
[1745572362185,5.64257546,1772.3,1771.6,14.79044959]
[1745572362390,5.64282012,1772.2,1771.7,1.47904496]
[1745572363253,5.64423695,1771.8,1771.6,5.886]
[1745572363486,5.64429643,1771.7,1771.6,5.886]
[1745572363788,8.64429643,1771.7,1771.6,5.886]
[1745572365358,5.64473915,1771.6,1771.3,5.887]
[1745572365869,8.64429643,1771.7,1771.3,5.887]
[1745572366053,5.64462532,1771.6,1771.3,5.887]
[1745572366694,5.64514103,1771.5,1771.3,5.887]
[1745572366890,5.64525234,1771.4,1771.3,5.887]
[1745572367085,8.64525234,1771.4,1771.3,5.887]
[1745572367256,5.64591472,1771.2,1771.0,0.812]
[1745572367462,5.64634903,1771.1,1770.9,5.887]
[1745572367870,5.64652738,1771.0,1770.9,5.887]
[1745572368069,5.64634903,1771.1,1770.9,5.887]
[1745572368276,5.64652738,1771.0,1770.9,5.887]
[1745572368461,5.64634903,1771.1,1770.9,5.887]
[1745572368893,3.0,1771.1,1770.9,5.887]
[1745572369368,3.0,1771.1,1770.6,0.812]
[1745572369572,3.0,1771.1,1770.8,5.888]
[1745572369768,8.64623623,1771.1,1770.8,5.888]
[1745572369969,8.64574994,1771.3,1770.8,5.888]
[1745572370200,3.0,1771.3,1770.8,5.888]
[1745572370395,3.0,1771.4,1770.8,5.888]
[1745572370577,5.64510864,1771.5,1771.0,0.7769]
[1745572370777,5.64538571,1771.4,1771.0,0.7769]
[1745572371590,5.64541969,1771.4,1771.0,0.7769]
[1745572372183,11.29092772,1771.4,1771.0,0.7769]
[1745572372501,5.64541969,1771.4,1771.0,0.7769]
[1745572373509,5.64578778,1771.3,1771.0,0.7769]
[1745572374003,5.64591535,1771.2,1770.8,6.6733]
[1745572374181,5.64571164,1771.3,1770.8,7.34063]
[1745572374584,5.64493367,1771.5,1770.8,7.34063]
[1745572374797,5.64590462,1771.2,1770.8,7.34063]
[1745572375100,5.6456968,1771.3,1770.8,6.6733]
[1745572375281,8.6454722,1771.4,1770.8,6.6733]
[1745572375483,5.64511592,1771.5,1770.9,5.64683237]
[1745572375694,5.64511592,1771.5,1771.0,0.56468324]
[1745572375894,11.29028711,1771.5,1770.8,12.32046331]
[1745572376094,3.7569,1771.6,1770.8,12.32046331]
[1745572376095,5.64543827,1771.4,1770.8,6.6733]
[1745572376303,5.64510584,1771.5,1770.8,6.6733]
[1745572376502,5.64510584,1771.5,1770.8,12.32014667]
[1745572376706,5.64502432,1771.5,1770.9,6.87871034]
[1745572377105,5.64502432,1771.5,1771.0,5.889]
[1745572377511,5.64529309,1771.4,1771.0,5.889]
[1745572377711,5.64509822,1771.5,1771.0,5.889]
[1745572379597,5.64551289,1771.4,1771.0,5.889]
[1745572380615,9.40161313,1771.6,1771.0,5.889]
[1745572380922,11.29077057,1771.4,1771.0,5.889]
[1745572381112,11.29075178,1771.4,1771.0,5.889]
[1745572381310,5.64525234,1771.4,1771.0,5.889]
[1745572381523,5.64512168,1771.5,1771.0,5.889]
[1745572381713,11.29035471,1771.5,1771.0,5.889]
[1745572382012,5.64533961,1771.4,1771.0,5.889]
[1745572383223,5.64511325,1771.5,1771.0,12.24761422]
[1745572383224,3.0,1771.5,1771.0,12.24761422]
[1745572383519,5.64442101,1771.7,1771.1,0.7793]
[1745572383890,5.64442101,1771.7,1771.1,6.42546677]
[1745572384221,5.64430967,1771.7,1771.1,6.42549344]
[1745572384427,5.64430967,1771.7,1771.2,0.64254934]
[1745572384623,6.4748773,1771.8,1771.2,0.64254934]
[1745572384922,5.64438745,1771.7,1771.2,0.64254934]
[1745572385127,5.64438745,1771.7,1771.1,6.42548593]
[1745572385620,5.64438745,1771.7,1771.1,0.7793]
[1745572385925,5.64438745,1771.7,1771.1,6.42545571]
[1745572386221,5.64484326,1771.6,1771.1,0.7793]
[1745572386395,5.64497485,1771.5,1771.1,0.7793]
[1745572386589,5.64484326,1771.6,1771.1,0.7793]
[1745572386590,5.64484326,1771.6,1771.1,1.51734015]
[1745572387121,5.64541869,1771.4,1771.1,0.7793]
[1745572387289,5.64572342,1771.3,1771.1,0.7793]
[1745572387697,5.64591751,1771.2,1771.0,5.889]
[1745572388191,5.64528121,1771.4,1771.0,5.672]
[1745572388419,5.64528121,1771.4,1771.0,6.2392]
[1745572388595,14.64505358,1771.5,1771.0,6.2392]
[1745572389696,14.64499751,1771.5,1771.0,6.2392]
[1745572390434,11.64510731,1771.5,1771.0,6.2392]
[1745572391034,5.64533899,1771.4,1771.0,6.2392]
[1745572391261,5.64567154,1771.3,1771.0,6.2392]
[1745572391622,5.64620857,1771.1,1771.0,5.672]
[1745572391832,8.64620857,1771.1,1771.0,5.672]
[1745572392033,5.64732184,1770.8,1770.6,22.61]
[1745572392208,5.64704586,1770.9,1770.6,22.61]
[1745572392620,5.64663421,1771.0,1770.6,22.61]
[1745572392825,3.0,1771.0,1770.6,22.61]
[1745572393106,8.6465491,1771.0,1770.6,22.61]
[1745572393329,5.64643038,1771.1,1770.6,24.95283]
[1745572393642,5.64664196,1771.0,1770.6,24.95283]
[1745572394009,3.0,1771.1,1770.6,24.95283]
[1745572394239,3.31408513,1771.1,1770.6,24.95283]
[1745572394433,0.31408513,1771.1,1770.6,24.95283]
[1745572394740,0.31408513,1771.1,1770.7,2.495283]
[1745572394921,5.96041172,1771.1,1770.7,2.495283]
[1745572395317,5.96033208,1771.1,1770.7,2.495283]
[1745572395521,5.64645674,1771.1,1770.6,22.61]
[1745572395849,5.64727009,1770.8,1770.6,22.61]
[1745572396208,8.64699598,1770.9,1770.6,22.61]
[1745572396651,11.64616165,1771.2,1770.6,22.61]
[1745572396829,6.0,1771.2,1770.6,25.51762981]
[1745572397011,5.64584453,1771.3,1770.7,0.8099]
[1745572397539,5.95968859,1771.4,1770.7,6.4573377]
[1745572397740,5.64564468,1771.3,1770.7,6.45719216]
[1745572398045,5.64564468,1771.3,1770.8,0.64571922]
[1745572398414,11.29109945,1771.4,1770.8,0.64571922]
[1745572398766,5.64559968,1771.3,1770.8,0.64571922]
[1745572399107,5.64552398,1771.4,1770.8,0.64571922]
[1745572399333,5.64552398,1771.4,1770.7,6.45734501]
[1745572399334,5.64576516,1771.3,1770.7,6.45734501]
[1745572399542,11.29106872,1771.4,1770.7,6.45734501]
[1745572399738,5.64557962,1771.3,1770.7,0.8099]
[1745572400439,5.64598865,1771.2,1770.7,0.8099]
[1745572400647,5.6462098,1771.1,1770.7,3.44265298]
[1745572400850,5.64598865,1771.2,1770.7,3.44265298]
[1745572401025,5.6463323,1771.1,1770.7,0.8099]
[1745572401214,5.64598865,1771.2,1770.7,0.8099]
[1745572401415,11.29214053,1771.2,1770.7,0.8099]
[1745572401620,5.64637133,1771.1,1770.7,0.8099]
[1745572401822,11.29225649,1771.2,1770.7,0.8099]
[1745572402029,5.64626788,1771.1,1770.7,0.8099]
[1745572402411,5.64605898,1771.2,1770.7,0.8099]
[1745572402647,5.64671482,1771.0,1770.7,0.8099]
[1745572402948,5.64637763,1771.1,1770.7,0.8099]
[1745572403243,0.31443128,1771.1,1770.7,0.8099]
[1745572403650,5.64693322,1770.9,1770.7,0.8099]
[1745572404358,5.64676081,1771.0,1770.7,0.8099]
[1745572404525,5.64685664,1770.9,1770.7,0.8099]
[1745572405746,5.64685664,1770.9,1770.6,22.61]
[1745572406047,11.29398378,1770.9,1770.6,22.61]
[1745572406350,5.64685664,1770.9,1770.6,22.61]
[1745572406738,5.64670303,1771.0,1770.6,22.61]
[1745572406935,5.64725393,1770.8,1770.6,22.61]
[1745572407142,5.64693397,1770.9,1770.6,22.61]
[1745572407316,5.64706461,1770.9,1770.6,22.61]
[1745572407517,5.64809491,1770.6,1770.4,5.673]
[1745572407930,11.29617284,1770.6,1770.4,5.673]
[1745572408138,11.29612933,1770.6,1770.4,5.673]
[1745572408355,5.64805956,1770.6,1770.4,5.673]
[1745572408624,5.64806391,1770.6,1770.4,5.673]
[1745572409228,11.29612158,1770.6,1770.4,5.673]
[1745572409428,5.64805767,1770.6,1770.4,5.673]
[1745572409729,5.64767528,1770.7,1770.4,5.673]
[1745572410333,5.64781078,1770.6,1770.4,5.673]
[1745572411970,5.64765005,1770.7,1770.4,5.673]
[1745572412131,8.64752854,1770.7,1770.4,5.673]
[1745572412651,5.64791708,1770.6,1770.4,5.673]
[1745572413453,8.64752854,1770.7,1770.4,5.673]
[1745572413454,3.0,1770.7,1770.4,5.673]
[1745572413774,6.39717108,1770.9,1770.4,6.32049]
[1745572413982,5.64748588,1770.7,1770.4,6.32049]
[1745572414777,5.64736619,1770.8,1770.4,6.32049]
[1745572415080,5.64761156,1770.7,1770.4,5.673]
[1745572417775,5.64750476,1770.7,1770.4,5.673]
[1745572417948,5.64751485,1770.7,1770.4,5.673]
[1745572418578,5.64704204,1770.9,1770.4,5.673]
[1745572419467,3.0,1770.9,1770.4,5.673]
[1745572419651,5.64731024,1770.8,1770.4,5.673]
[1745572420365,9.84702055,1770.9,1770.4,5.673]
[1745572420688,5.64725805,1770.8,1770.4,5.673]
[1745572420871,8.64702055,1770.9,1770.4,5.673]
[1745572421286,8.64691441,1770.9,1770.4,6.88536383]
[1745572422065,3.0,1770.9,1770.4,6.88536383]
[1745572422287,8.64693945,1770.9,1770.4,6.88536383]
[1745572422688,3.0,1770.9,1770.4,12.53378678]
[1745572422895,3.0,1770.9,1770.4,6.88536383]
[1745572423458,3.0,1770.9,1770.4,12.53377242]
[1745572423799,3.31442472,1770.9,1770.4,12.53371139]
[1745572423966,8.96129699,1770.9,1770.4,6.88536383]
[1745572424163,0.31442472,1770.9,1770.4,6.88536383]
[1745572424365,14.60787166,1771.0,1770.5,0.68853638]
[1745572424566,8.96111018,1771.0,1770.5,0.68853638]
[1745572425089,3.31442472,1771.0,1770.5,0.68853638]
[1745572425277,11.64592419,1771.2,1770.6,6.45230502]
[1745572425483,8.64589659,1771.2,1770.6,6.45230502]
[1745572425697,8.64589659,1771.2,1770.7,0.6452305]
[1745572425908,8.64589659,1771.2,1770.8,5.51]
[1745572427197,5.64629894,1771.1,1770.8,5.51]
[1745572427966,8.64589659,1771.2,1770.8,5.51]
[1745572428367,14.29205158,1771.2,1770.8,5.51]
[1745572428693,0.8027,1771.4,1770.9,0.8228]
[1745572428901,5.64605352,1771.2,1770.9,0.8228]
[1745572430508,5.64612256,1771.2,1770.9,0.8228]
[1745572431392,5.64573402,1771.3,1770.9,0.8228]
[1745572431703,5.64597899,1771.2,1770.9,0.8228]
[1745572432008,5.64573402,1771.3,1770.9,0.8228]
[1745572432551,5.64590343,1771.2,1770.9,0.8228]
[1745572433016,5.64573402,1771.3,1770.9,0.8228]
[1745572433216,5.64597649,1771.2,1770.9,0.8228]
[1745572433505,11.2916118,1771.3,1770.9,0.8228]
[1745572433713,5.64573402,1771.3,1770.9,0.8228]
[1745572434283,5.64508602,1771.5,1770.9,0.8228]
[1745572434613,5.64508602,1771.5,1770.9,7.66749524]
[1745572434776,5.64508602,1771.5,1770.9,2.02079446]
[1745572434978,5.64508602,1771.5,1770.9,7.6675924]
[1745572435176,11.6447961,1771.6,1770.9,13.31422155]
[1745572435405,5.64504509,1771.5,1771.0,1.33142215]
[1745572435807,5.64504509,1771.5,1770.9,2.02079446]
[1745572436008,5.64504509,1771.5,1770.9,7.66753656]
[1745572436331,5.6453092,1771.4,1770.9,2.02079446]
[1745572436613,5.64531039,1771.4,1770.9,2.02079446]
[1745572437514,5.64508751,1771.5,1770.9,0.8228]
[1745572437515,5.64565926,1771.3,1770.9,0.8228]
[1745572438217,5.64557751,1771.3,1770.9,0.8228]
[1745572438395,5.64544338,1771.4,1770.9,0.8228]
[1745572439521,5.64567843,1771.3,1770.9,0.8228]
[1745572439703,5.64544338,1771.4,1770.9,0.8228]
[1745572439908,5.64544338,1771.4,1770.9,1.45608]
[1745572440327,11.29093086,1771.4,1770.9,1.45608]
[1745572440823,11.29095455,1771.4,1770.9,1.45608]
[1745572441018,5.64544338,1771.4,1770.9,1.45608]
[1745572441323,5.64532016,1771.4,1770.9,1.45608]
[1745572441497,5.6452946,1771.4,1770.9,1.45608]
[1745572442637,5.64511215,1771.5,1770.9,1.45608]
[1745572442917,5.64528372,1771.4,1770.9,1.45608]
[1745572444819,5.64567897,1771.3,1770.9,1.45608]
[1745572448617,5.64567897,1771.3,1770.9,0.8228]
[1745572452016,5.6461447,1771.2,1770.9,0.8228]
[1745572452556,5.64652738,1771.0,1770.8,5.51]
[1745572453012,5.96071552,1771.0,1770.8,5.51]
[1745572454933,5.64684623,1770.9,1770.8,5.51]
[1745572455633,5.96103437,1770.9,1770.8,5.51]
[1745572456203,5.64684623,1770.9,1770.8,5.51]
[1745572456415,5.64652738,1771.0,1770.8,5.51]
[1745572456804,5.64684623,1770.9,1770.8,5.51]
[1745572457300,5.64652738,1771.0,1770.8,5.51]
[1745572457747,0.3140996,1771.0,1770.8,5.51]
[1745572458112,0.3140996,1771.0,1770.9,0.7576]
[1745572458640,6.0,1771.2,1770.9,0.7576]
[1745572458856,5.64605114,1771.2,1770.9,0.7576]
[1745572459163,5.64572295,1771.3,1770.9,0.7576]
[1745572459950,11.60556002,1771.3,1770.9,0.7576]
[1745572460149,5.95975861,1771.3,1770.9,0.7576]
[1745572460466,10.24534818,1771.5,1770.9,0.7576]
[1745572460467,0.31403566,1771.4,1770.9,0.7576]
[1745572460754,5.64651149,1771.1,1770.9,0.7576]
[1745572460926,11.29208922,1771.2,1770.9,0.7576]
[1745572461123,5.64625082,1771.1,1770.9,0.7576]
[1745572462064,5.64625082,1771.1,1770.8,5.51]
[1745572462250,5.96029578,1771.1,1770.8,5.51]
[1745572462582,5.64660356,1771.0,1770.8,5.51]
[1745572463054,5.64625082,1771.1,1770.8,5.51]
[1745572463564,5.64656234,1771.0,1770.8,5.51]
[1745572464052,5.64625082,1771.1,1770.8,5.51]
[1745572464555,5.96041597,1771.1,1770.8,5.51]
[1745572465454,11.60689728,1771.1,1770.8,5.51]
[1745572465755,5.64657683,1771.0,1770.8,5.51]
[1745572466259,5.64625082,1771.1,1770.8,5.51]
[1745572466625,5.64608427,1771.2,1770.8,5.51]
[1745572466826,5.96036894,1771.2,1770.8,5.51]
[1745572467726,5.64636374,1771.1,1770.8,5.51]
[1745572469062,8.64601902,1771.2,1770.8,5.51]
[1745572469220,5.64601902,1771.2,1770.8,5.51]
[1745572469426,5.64536777,1771.4,1770.8,11.78487709]
[1745572469656,11.60523805,1771.4,1770.9,0.7607]
[1745572469824,5.95971524,1771.4,1770.9,0.7607]
[1745572471725,5.64562601,1771.3,1770.9,0.7607]
[1745572472463,11.29086636,1771.4,1770.9,0.7607]
[1745572472765,11.29086636,1771.4,1770.9,1.450559]
[1745572473066,11.29090445,1771.4,1770.9,1.450559]
[1745572473361,5.64560043,1771.3,1770.9,1.450559]
[1745572474261,5.64603209,1771.2,1770.9,0.7607]
[1745572474465,5.64565468,1771.3,1770.9,0.7607]
[1745572474968,5.64535545,1771.4,1770.9,0.7607]
[1745572475262,5.9598121,1771.3,1770.9,0.7607]
[1745572475466,0.31420913,1771.3,1770.9,0.7607]
[1745572475636,5.95954931,1771.4,1770.9,0.7607]
[1745572476453,5.95954931,1771.4,1770.9,1.38777]
[1745572476656,11.60504753,1771.4,1770.9,1.38777]
[1745572476828,5.95954931,1771.4,1770.9,1.38777]
[1745572477469,0.31420913,1771.4,1771.1,0.8074]
[1745572477666,0.31420913,1771.4,1770.9,1.40344892]
[1745572477667,0.31420913,1771.7,1771.3,0.8074]
[1745572477854,0.31420913,1771.7,1771.3,1.96980907]
[1745572478244,0.31420913,1771.7,1771.3,6.80780567]
[1745572478445,11.64354042,1772.0,1771.4,6.40133587]
[1745572479243,5.64320618,1772.1,1771.5,0.7561]
[1745572479442,11.2865387,1772.1,1771.6,5.171]
[1745572479661,5.64341328,1772.0,1771.6,5.171]
[1745572479860,5.64341328,1772.0,1771.6,5.76371]
[1745572480136,5.64325409,1772.1,1771.6,5.76371]
[1745572480373,5.6433435,1772.0,1771.6,5.76371]
[1745572480574,5.643979,1771.8,1771.6,5.76371]
[1745572480731,5.643979,1771.8,1771.6,5.171]
[1745572481375,5.64388283,1771.9,1771.6,5.171]
[1745572482283,5.64372888,1771.9,1771.6,5.171]
[1745572482781,5.64366021,1771.9,1771.6,5.171]
[1745572482945,5.64336967,1772.0,1771.6,5.171]
[1745572483144,5.6436062,1772.0,1771.6,5.171]
[1745572483390,5.64370173,1771.9,1771.6,5.171]
[1745572483549,11.28725561,1772.0,1771.6,5.171]
[1745572483982,5.64373013,1771.9,1771.6,5.171]
[1745572484867,5.6436062,1772.0,1771.6,5.171]
[1745572485255,8.64318071,1772.1,1771.6,5.76371]
[1745572485779,14.28645907,1772.1,1771.6,5.76371]
[1745572486077,8.64318071,1772.1,1771.6,5.76371]
[1745572486251,14.28645776,1772.1,1771.6,5.76371]
[1745572486575,5.6428628,1772.2,1771.7,0.7974]
[1745572486780,5.64317321,1772.1,1771.7,1.453511]
[1745572487581,8.64283612,1772.2,1771.7,1.453511]
[1745572487977,8.64279294,1772.2,1771.7,1.453511]
[1745572488373,5.64304873,1772.1,1771.7,1.453511]
[1745572488551,8.64279294,1772.2,1771.7,1.453511]
[1745572488748,3.0,1772.2,1771.7,7.09769623]
[1745572488963,11.64186332,1772.5,1771.9,0.8311]
[1745572489193,5.64217639,1772.4,1772.0,5.169]
[1745572489775,11.28387032,1772.5,1772.0,5.169]
[1745572489976,11.28387032,1772.5,1772.1,0.5169]
[1745572490176,5.64186332,1772.5,1772.1,0.5169]
[1745572490597,0.7812,1772.7,1772.2,5.64260251]
[1745572490796,11.640745,1772.9,1772.2,5.64260251]
[1745572491000,11.640745,1772.9,1772.3,1.39536025]
[1745572491001,5.64086261,1772.8,1772.3,1.39536025]
[1745572491200,5.640745,1772.9,1772.4,5.169]
[1745572491697,5.64072223,1772.9,1772.4,5.169]
[1745572491878,12.42155103,1773.0,1772.4,5.169]
[1745572492082,6.0,1773.0,1772.5,0.7607]
[1745572492303,6.04518801,1773.1,1772.5,0.7607]
[1745572492635,6.04521534,1773.1,1772.5,0.7607]
[1745572493180,6.04521534,1773.1,1772.5,6.4023924]
[1745572493378,6.04521534,1773.1,1772.6,0.64023924]
[1745572493793,3.4051866,1773.1,1772.6,0.64023924]
[1745572493998,0.4051866,1773.1,1772.7,0.8223]
[1745572494399,5.64043249,1773.0,1772.8,5.168]
[1745572494821,5.64070951,1772.9,1772.7,5.168]
[1745572495480,11.28145134,1772.9,1772.7,5.168]
[1745572495787,5.64070951,1772.9,1772.7,5.168]
[1745572496109,11.2814739,1772.9,1772.7,5.168]
[1745572496421,5.64070951,1772.9,1772.7,5.168]
[1745572497276,5.64079422,1772.8,1772.7,5.168]
[1745572497502,8.64030927,1773.0,1772.7,5.168]
[1745572497709,5.64066692,1772.9,1772.4,0.7575]
[1745572497900,5.64047605,1772.9,1772.4,5.9255]
[1745572498097,5.64162124,1772.6,1772.4,5.9255]
[1745572498301,5.64128447,1772.7,1772.4,5.9255]
[1745572498501,11.28199496,1772.8,1772.4,5.9255]
[1745572498813,5.64130397,1772.7,1772.4,5.9255]
[1745572499927,1.7281995,1772.8,1772.4,5.9255]
[1745572499928,5.64158096,1772.6,1772.4,5.9255]
[1745572500091,5.64200833,1772.5,1772.1,17.7026]
[1745572500316,5.64206725,1772.4,1772.3,5.167]
[1745572500729,5.64200833,1772.5,1772.3,5.167]
[1745572501034,5.64291776,1772.2,1772.0,5.167]
[1745572501204,5.6430224,1772.1,1772.0,5.167]
[1745572501403,5.64291776,1772.2,1772.0,5.167]
[1745572503556,5.6425077,1772.3,1772.0,5.167]
[1745572503850,5.64273804,1772.2,1772.0,5.167]
[1745572504216,5.6425077,1772.3,1772.0,5.167]
[1745572504553,5.64281037,1772.2,1772.0,5.167]
[1745572505456,5.64397787,1771.8,1771.5,0.8111]
[1745572505635,5.64397787,1771.8,1771.5,5.8871]
[1745572505636,5.64442416,1771.7,1771.5,5.8871]
[1745572505837,11.28902949,1771.7,1771.5,5.8871]
[1745572506006,5.64461503,1771.6,1771.5,5.076]
[1745572506301,5.64442416,1771.7,1771.5,5.076]
[1745572506715,5.64416281,1771.8,1771.5,5.076]
[1745572506945,11.28842613,1771.8,1771.5,5.076]
[1745572507606,5.64437055,1771.7,1771.5,5.076]
[1745572509639,5.64461503,1771.6,1771.5,5.076]
[1745572509940,5.64446335,1771.7,1771.5,5.076]
[1745572510841,11.28905479,1771.7,1771.5,5.076]
[1745572511544,5.64461503,1771.6,1771.5,5.076]
[1745572511704,3.0,1771.8,1771.5,5.076]
[1745572511910,8.64412664,1771.8,1771.5,5.076]
[1745572512360,5.64442732,1771.7,1771.5,5.076]
[1745572513951,5.64442732,1771.7,1771.2,5.077]